bitfinex-derivatives/quotes_BNBF0:USTF0_20250401
["timestamp","ask_amount","ask_price","bid_price","bid_amount"]
[1743510074346,0.28426147,612.66,612.33,0.32662126]
[1743510076057,0.614,612.67,612.33,0.32662126]
[1743510076559,0.28426379,612.66,612.33,0.32662126]
[1743510078155,0.28426379,612.66,610.78,2.50262241]
[1743510078358,0.28426379,612.66,609.13,5.75413057]
[1743510078359,0.28426379,612.66,610.87,2.50262241]
[1743510078658,0.28426379,612.66,610.89,0.32739118]
[1743510078962,0.28426379,612.66,610.9,0.27057189]
[1743510079155,0.28426379,612.66,610.91,0.27057189]
[1743510079358,0.28426379,612.66,610.92,2.7731943]
[1743510079558,0.28426379,612.66,610.93,0.27057189]
[1743510079755,0.28426379,612.66,610.94,0.27057189]
[1743510080060,0.28426379,612.66,610.96,0.32735367]
[1743510080365,0.28426379,612.66,610.97,0.27057189]
[1743510080767,0.28426379,612.66,610.99,0.32733759]
[1743510080969,0.28426379,612.66,611.0,0.27057189]
[1743510081262,0.28426379,612.66,611.02,0.32732152]
[1743510081463,0.28426379,612.66,611.03,0.27057189]
[1743510081662,0.28426379,612.66,611.04,0.27057189]
[1743510081858,0.28426379,612.66,611.05,0.59787734]
[1743510082163,0.28426379,612.66,611.06,0.27057189]
[1743510082363,0.28426379,612.66,611.07,0.27057189]
[1743510082664,0.28426379,612.66,611.23,2.50262241]
[1743510082858,0.28426379,612.66,611.25,0.32719836]
[1743510083058,0.28426379,612.66,611.26,0.27057189]
[1743510083260,0.28426379,612.66,611.28,0.3271823]
[1743510083465,0.28426379,612.66,611.29,0.27057189]
[1743510083657,0.28426379,612.66,611.31,0.32716624]
[1743510083858,0.28426379,612.66,611.32,0.27057189]
[1743510084062,0.28426379,612.66,611.34,0.32715019]
[1743510084262,0.28426379,612.66,611.35,0.27057189]
[1743510084456,0.28426379,612.66,611.36,0.27057189]
[1743510084661,0.28426379,612.66,611.37,0.27057189]
[1743510084859,0.504,612.65,611.38,0.27057189]
[1743510085061,0.504,612.65,611.4,0.32711808]
[1743510085463,0.504,612.65,611.41,0.27057189]
[1743510085665,0.779,612.64,611.43,0.32710203]
[1743510085863,0.779,612.64,611.44,0.27057189]
[1743510086165,0.779,612.64,611.45,0.27057189]
[1743510086358,0.779,612.64,611.46,0.27057189]
[1743510086559,0.779,612.64,611.47,0.27057189]
[1743510086864,0.779,612.64,611.43,0.32710203]
[1743510086865,0.779,612.64,611.49,0.32706994]
[1743510087265,0.779,612.64,611.5,0.27057189]
[1743510087468,0.779,612.64,611.52,0.32705389]
[1743510087766,0.779,612.64,611.53,0.27057189]
[1743510087965,0.779,612.64,611.54,0.27057189]
[1743510088173,0.779,612.64,611.55,0.27057189]
[1743510088362,0.779,612.64,611.52,0.32705389]
[1743510088363,0.779,612.64,611.56,0.27057189]
[1743510088563,0.779,612.64,611.57,0.27057189]
[1743510088764,0.779,612.64,611.58,0.27057189]
[1743510088967,0.779,612.64,611.59,0.27057189]
[1743510089271,0.779,612.64,611.6,0.27057189]
[1743510089471,0.779,612.64,611.62,0.32700042]
[1743510089669,0.779,612.64,611.63,0.27057189]
[1743510089968,0.779,612.64,611.65,0.32698438]
[1743510090164,0.779,612.64,611.66,0.27057189]
[1743510090370,0.779,612.64,611.68,0.32696834]
[1743510090562,0.779,612.64,611.69,0.27021592]
[1743510090766,0.779,612.64,611.02,2.50262241]
[1743510090767,0.779,612.64,611.71,0.32695231]
[1743510091065,0.779,612.64,611.72,0.27021592]
[1743510091268,0.779,612.64,611.74,0.32693628]
[1743510091468,0.28416398,612.63,611.75,0.27021592]
[1743510091671,0.28416398,612.63,611.77,0.32692024]
[1743510091965,0.28416398,612.63,611.78,0.27021592]
[1743510092168,0.28416398,612.63,611.8,0.32690421]
[1743510092476,0.28416398,612.63,611.81,0.27021592]
[1743510092673,0.779,612.64,611.83,0.32688818]
[1743510092971,0.779,612.64,611.84,0.27013443]
[1743510093169,0.779,612.64,611.85,0.3268775]
[1743510093370,0.779,612.64,611.86,0.27013443]
[1743510093571,0.779,612.64,611.87,0.32686681]
[1743510093771,0.779,612.64,611.88,0.27013443]
[1743510094066,0.779,612.64,611.89,0.32685613]
[1743510094279,0.779,612.64,611.9,0.27013443]
[1743510094571,0.779,612.64,611.91,0.32684545]
[1743510094771,0.779,612.64,611.92,0.27013443]
[1743510094975,0.779,612.64,611.93,0.32683476]
[1743510095276,0.779,612.64,611.94,0.27009619]
[1743510095467,0.679,612.63,611.95,0.32682408]
[1743510095671,0.679,612.63,611.96,0.27009619]
[1743510095869,0.679,612.63,611.97,0.3268134]
[1743510096068,0.182,612.62,611.98,0.27009619]
[1743510096268,0.182,612.62,611.99,0.32680272]
[1743510096470,0.182,612.62,612.0,0.27009619]
[1743510096666,0.182,612.62,612.01,0.32679204]
[1743510096868,0.182,612.62,612.02,0.27009619]
[1743510097174,0.182,612.62,612.03,0.32678136]
[1743510097375,0.182,612.62,612.04,0.27009619]
[1743510097571,0.182,612.62,612.05,0.32677068]
[1743510097772,0.182,612.62,612.06,0.27009619]
[1743510098480,0.2841257,612.61,612.06,0.27009619]
[1743510099871,0.2841257,612.61,612.05,0.32677068]
[1743510100071,0.182,612.62,612.06,0.27042771]
[1743510101278,0.28416398,612.61,612.06,0.27042771]
[1743510101476,0.28416398,612.61,612.05,0.32677068]
[1743510101681,0.28416398,612.61,612.06,0.27053869]
[1743510101883,0.536,612.6,612.06,0.27053869]
[1743510103482,0.28415238,612.59,612.06,0.27053869]
[1743510106299,0.536,612.6,612.06,0.27053869]
[1743510106483,0.536,612.6,612.05,0.32677068]
[1743510106484,0.536,612.6,612.07,0.27056642]
[1743510106683,0.2841605,612.58,612.06,0.27056642]
[1743510106879,0.2841605,612.58,612.07,0.27056642]
[1743510107083,0.2841605,612.58,612.05,0.32677068]
[1743510108984,0.3621605,612.58,612.05,0.32677068]
[1743510109183,0.078,612.58,612.05,0.32677068]
[1743510109485,0.28432069,612.57,612.06,0.2705877]
[1743510112090,0.078,612.58,612.06,0.2705877]
[1743510112488,0.769,612.58,612.06,0.2705877]
[1743510113393,0.28414426,612.57,612.06,0.2705877]
[1743510115186,0.769,612.58,612.06,0.2705877]
[1743510115383,0.28415586,612.56,612.06,0.2705877]
[1743510116590,0.182,612.55,612.06,0.2705877]
[1743510117685,0.182,612.55,612.05,0.32677068]
[1743510118489,0.2843416,612.54,612.05,0.32677068]
[1743510121886,0.2843416,612.54,610.34,2.50262241]
[1743510122090,0.2843416,612.54,610.35,0.27091797]
[1743510122291,0.2843416,612.54,610.36,0.27084]
[1743510122588,0.2843416,612.54,610.46,0.32762179]
[1743510122788,0.2843416,612.54,610.47,0.27084]
[1743510122989,0.2843416,612.54,610.48,0.27084]
[1743510123194,0.2843416,612.54,610.49,0.27084]
[1743510123493,0.2843416,612.54,610.58,0.3275574]
[1743510123693,0.2843416,612.54,610.59,0.27084]
[1743510123996,0.2843416,612.54,610.87,2.50262241]
[1743510124195,0.182,612.55,610.88,0.27084]
[1743510124402,0.28432766,612.53,610.9,0.32738582]
[1743510124591,0.28432766,612.53,610.91,0.27084]
[1743510124795,0.28432766,612.53,610.56,0.28432766]
[1743510124796,0.28432766,612.53,610.93,0.32736974]
[1743510124996,0.28432766,612.53,610.94,0.27084]
[1743510125194,0.28432766,612.53,610.96,0.32735367]
[1743510125595,0.28432766,612.53,610.97,0.27080309]
[1743510125792,0.28432766,612.53,610.98,0.27080309]
[1743510125993,0.28432766,612.53,611.0,0.32733224]
[1743510126198,0.28432766,612.53,611.01,0.27080309]
[1743510126499,0.28432766,612.53,611.03,0.32731617]
[1743510126701,0.28432766,612.53,611.04,0.27080309]
[1743510126997,0.078,612.52,611.05,0.27080309]
[1743510127198,0.078,612.52,611.06,0.27080309]
[1743510127399,0.078,612.52,611.07,0.27080309]
[1743510127700,0.078,612.52,611.08,0.27080309]
[1743510127897,0.078,612.52,611.09,0.27080309]
[1743510128098,0.078,612.52,611.1,0.27080309]
[1743510128399,0.078,612.52,611.11,0.27080309]
[1743510128599,0.485,612.51,611.03,0.32731617]
[1743510128805,0.485,612.51,611.12,0.2707651]
[1743510129100,0.485,612.51,611.13,0.2707651]
[1743510129297,0.485,612.51,611.14,0.2707651]
[1743510129497,0.485,612.51,611.15,0.2707651]
[1743510129696,0.485,612.51,611.03,0.32731617]
[1743510129697,0.485,612.51,611.16,0.2707651]
[1743510129897,0.485,612.51,611.17,0.2707651]
[1743510130096,0.485,612.51,611.03,0.32731617]
[1743510130097,0.485,612.51,611.18,0.2707651]
[1743510130295,0.485,612.51,611.19,0.59799558]
[1743510130500,0.28433579,612.5,611.21,0.32721977]
[1743510130698,0.28433579,612.5,611.22,0.2707651]
[1743510131500,0.28433579,612.5,611.24,0.32720371]
[1743510131701,0.28433579,612.5,611.25,0.2707651]
[1743510131900,0.28433579,612.5,611.27,0.32718765]
[1743510132107,0.28433579,612.5,611.28,0.27067676]
[1743510132294,0.28433579,612.5,611.3,0.3271716]
[1743510132497,0.28433579,612.5,611.31,0.27067676]
[1743510132700,0.28433579,612.5,611.33,0.32715554]
[1743510132901,0.28433579,612.5,611.34,0.27067676]
[1743510133102,0.485,612.51,611.36,0.32713949]
[1743510133396,1.06328237,612.49,611.37,0.27067676]
[1743510133597,1.06328237,612.49,611.39,0.32712344]
[1743510133801,1.06328237,612.49,611.4,0.27067676]
[1743510134001,1.06328237,612.49,611.42,0.32710738]
[1743510134201,1.06328237,612.49,611.43,0.27067676]
[1743510134496,1.06328237,612.49,611.45,0.32709134]
[1743510134696,1.06328237,612.49,611.46,0.27067676]
[1743510134897,1.06328237,612.49,611.48,0.32707529]
[1743510135103,1.06328237,612.49,611.49,0.27067676]
[1743510135402,1.06328237,612.49,611.51,0.32705924]
[1743510135602,1.06328237,612.49,611.52,0.27067676]
[1743510135804,1.06328237,612.49,611.54,0.3270432]
[1743510135997,1.06328237,612.49,611.55,0.27067676]
[1743510136200,1.06328237,612.49,611.56,0.3270325]
[1743510136403,1.06328237,612.49,611.57,0.27067676]
[1743510136700,0.181,612.48,611.58,0.32702181]
[1743510136903,0.181,612.48,611.59,0.27049406]
[1743510137103,0.181,612.48,611.6,0.32701111]
[1743510137302,0.181,612.48,611.61,0.27049406]
[1743510137502,0.181,612.48,611.62,0.32700042]
[1743510137703,0.181,612.48,611.63,0.27049406]
[1743510137903,0.181,612.48,611.64,0.32698973]
[1743510138104,0.181,612.48,611.65,0.27049406]
[1743510138303,0.181,612.48,611.66,0.32697904]
[1743510138707,0.181,612.48,611.67,0.27051288]
[1743510139304,0.181,612.48,611.68,0.32696834]
[1743510139610,0.28426031,612.47,611.69,0.27051288]
[1743510139805,0.28426031,612.47,611.7,0.32695765]
[1743510140004,0.28426031,612.47,611.71,0.27051288]
[1743510140204,0.28426031,612.47,611.72,0.32694696]
[1743510140397,0.28426031,612.47,611.73,0.27051288]
[1743510141599,0.28426031,612.47,611.72,0.32694696]
[1743510141803,0.28426031,612.47,611.73,0.27056018]
[1743510142103,0.902,612.46,611.74,0.27061642]
[1743510142301,0.902,612.46,611.75,0.27061642]
[1743510142499,0.902,612.46,611.73,0.27061642]
[1743510142698,0.902,612.46,611.74,0.27061642]
[1743510142904,0.902,612.46,611.73,0.27061642]
[1743510143103,0.902,612.46,611.74,0.27061642]
[1743510143304,0.902,612.46,611.75,0.27061642]
[1743510143505,0.28427773,612.45,611.73,0.27061642]
[1743510143709,0.28427773,612.45,611.74,0.27061642]
[1743510143901,0.28427773,612.45,611.73,0.27061642]
[1743510144106,0.28427773,612.45,611.74,0.27061642]
[1743510144304,0.28427773,612.45,611.73,0.27061642]
[1743510144603,0.28427773,612.45,611.72,0.32694696]
[1743510144604,0.28427773,612.45,611.74,0.27061642]
[1743510144806,0.28427773,612.45,611.73,0.27061642]
[1743510145001,0.28427773,612.45,611.74,0.27061642]
[1743510145206,0.902,612.46,611.74,0.27061642]
[1743510145505,0.902,612.46,611.75,0.59754735]
[1743510145706,0.902,612.46,611.76,0.27061642]
[1743510146608,0.2842487,612.45,611.76,0.27061642]
[1743510147815,0.2842487,612.45,611.75,0.32693093]
[1743510148021,1.09004557,612.44,611.75,0.32693093]
[1743510148317,1.09004557,612.43,611.75,0.32693093]
[1743510148522,1.09004557,612.42,611.75,0.32693093]
[1743510148918,0.544,612.42,611.75,0.32693093]
[1743510149519,0.544,612.42,610.42,2.50262241]
[1743510149815,1.08973908,612.41,610.44,0.32763252]
[1743510150019,1.08973908,612.41,610.45,0.2708403]
[1743510150215,1.08973908,612.41,610.47,0.32761642]
[1743510150519,1.08973908,612.4,610.48,0.2708403]
[1743510150720,1.08973908,612.41,610.5,0.32760032]
[1743510150918,1.08973908,612.41,610.51,0.2708403]
[1743510151119,0.544,612.42,610.53,0.32758423]
[1743510151318,0.544,612.42,610.54,0.2708403]
[1743510151619,0.544,612.42,610.56,0.32756813]
[1743510151620,0.28446479,612.4,610.56,0.32756813]
[1743510151919,0.28446479,612.4,610.57,0.2708403]
[1743510152119,0.28446479,612.4,610.59,0.32755203]
[1743510152321,0.28446479,612.4,610.6,0.2708403]
[1743510152513,0.078,612.39,610.62,0.32753594]
[1743510152717,0.078,612.39,610.63,0.2708403]
[1743510152913,0.078,612.39,610.47,0.28446479]
[1743510152914,0.078,612.39,610.65,0.32751985]
[1743510153120,0.078,612.39,610.66,0.2708403]
[1743510153316,0.078,612.39,610.68,0.32750376]
[1743510153517,0.078,612.39,610.69,0.27077004]
[1743510153714,0.078,612.39,610.47,0.28446479]
[1743510153715,0.078,612.39,610.71,0.32748767]
[1743510153921,0.078,612.39,610.72,0.27077004]
[1743510154122,0.078,612.39,610.74,0.32747159]
[1743510154320,0.078,612.39,610.75,0.27077004]
[1743510154621,0.078,612.39,610.36,2.50262241]
[1743510154622,0.28443224,612.38,610.77,0.3274555]
[1743510154816,0.28443224,612.38,610.78,0.27077004]
[1743510155014,0.28443224,612.38,610.8,0.32743942]
[1743510155214,0.28443224,612.38,610.81,0.27077004]
[1743510155515,0.28443224,612.38,610.82,0.27077004]
[1743510155714,0.28443224,612.38,610.83,0.27077004]
[1743510155919,0.28443224,612.38,610.84,0.27077004]
[1743510156220,1.37417132,612.38,610.85,0.27077004]
[1743510156420,1.37417132,612.38,610.87,0.3274019]
[1743510156622,1.37417132,612.38,610.88,0.27087744]
[1743510156927,1.08973908,612.37,610.9,0.32738582]
[1743510157223,1.08973908,612.37,610.91,0.27087744]
[1743510157419,0.28443108,612.36,610.93,0.32736974]
[1743510157615,0.28443108,612.36,610.94,0.27087744]
[1743510157922,0.28443108,612.36,610.96,0.32735367]
[1743510158221,0.28443108,612.36,610.97,0.27087744]
[1743510158424,0.28443108,612.36,610.98,0.27087744]
[1743510158623,1.08973908,612.35,610.99,0.27087744]
[1743510158827,1.08973908,612.35,611.0,0.27087744]
[1743510159126,1.08973908,612.35,611.02,0.32732152]
[1743510159322,1.08973908,612.34,611.03,0.27087744]
[1743510159523,1.08973908,612.34,611.05,0.32730545]
[1743510159716,1.08973908,612.34,611.06,0.27087744]
[1743510159921,1.08973908,612.33,611.08,0.32728938]
[1743510160117,1.08973908,612.33,611.09,0.27087744]
[1743510160421,1.08973908,612.33,611.11,0.32727332]
[1743510160621,1.08973908,612.38,611.12,0.27087744]
[1743510160823,1.08973908,612.38,611.14,0.32725725]
[1743510161023,1.08973908,612.37,611.15,0.27087744]
[1743510161222,1.08973908,612.37,611.17,0.32724119]
[1743510161423,1.35539628,612.36,611.18,0.27087586]
[1743510161623,1.35138526,612.35,611.19,0.32723048]
[1743510161821,1.08973908,612.34,611.2,0.27087586]
[1743510162021,1.08973908,612.34,611.21,0.32721977]
[1743510162218,1.08973908,612.34,611.22,0.27087586]
[1743510162419,1.08973908,612.33,611.23,0.32720907]
[1743510162622,1.08973908,612.33,611.24,0.27087586]
[1743510162819,1.08973908,612.32,611.25,0.32719836]
[1743510163018,1.08973908,612.32,611.26,0.27087586]
[1743510163220,1.08973908,612.32,611.27,0.32718765]
[1743510163425,1.08973908,612.32,611.28,0.27087586]
[1743510163644,1.08973908,612.31,611.29,0.32717695]
[1743510163835,1.08973908,612.31,611.3,0.27087586]
[1743510164019,1.08973908,612.31,611.31,0.32716624]
[1743510164325,1.08973908,612.3,611.32,0.27087586]
[1743510164625,1.08973908,612.29,611.33,0.32715554]
[1743510164825,1.08973908,612.29,611.34,0.27087586]
[1743510165022,1.08973908,612.28,611.34,0.59802605]
[1743510165220,1.61373908,612.28,611.35,0.27087586]
[1743510165425,0.524,612.28,611.35,0.27087586]
[1743510166026,1.08973908,612.27,611.35,0.27087586]
[1743510166228,0.524,612.28,611.35,0.27087586]
[1743510166229,1.08973908,612.26,611.35,0.27087586]
[1743510166927,1.08973908,612.25,611.35,0.27087586]
[1743510167528,1.08973908,612.24,611.35,0.27087586]
[1743510167728,1.08973908,612.23,611.35,0.27087586]
[1743510168130,1.08973908,612.22,611.35,0.27087586]
[1743510168725,1.08973908,612.21,611.35,0.27087586]
[1743510169129,1.56273908,612.2,611.35,0.27087586]
[1743510169525,0.75744619,612.2,611.35,0.27087586]
[1743510170325,0.93744619,612.2,611.35,0.27087586]
[1743510170632,0.93744619,612.2,611.34,0.32715019]
[1743510171028,0.93744619,612.2,611.35,0.27071062]
[1743510171332,0.93744619,612.2,611.34,0.32715019]
[1743510171527,0.93744619,612.2,611.34,0.31465722]
[1743510172127,0.653,612.2,611.34,0.31465722]
[1743510172333,1.08973908,612.19,611.35,0.27123312]
[1743510172527,1.3743516,612.19,611.34,0.31465722]
[1743510172930,1.08973908,612.18,611.34,0.31465722]
[1743510173433,1.08973908,612.17,611.35,0.271317]
[1743510173935,1.08973908,612.16,611.35,0.271317]
[1743510174336,1.08973908,612.15,611.35,0.271317]
[1743510174737,1.08973908,612.14,611.34,0.31465722]
[1743510175134,1.08973908,612.13,611.34,0.31465722]
[1743510175532,1.3743807,612.13,611.35,0.27121889]
[1743510175736,0.28464162,612.13,611.35,0.27121889]
[1743510175931,0.28464162,612.13,611.34,0.31465722]
[1743510176131,0.28464162,612.13,611.35,0.27119063]
[1743510177541,0.28464162,612.13,611.34,0.31465722]
[1743510177736,0.28464162,612.13,611.35,0.27120961]
[1743510178135,0.653,612.2,611.35,0.27120961]
[1743510178548,0.28442178,612.12,611.35,0.27120961]
[1743510178739,0.653,612.2,611.35,0.27120961]
[1743510179441,0.28442178,612.19,611.35,0.27120961]
[1743510181344,1.08653562,612.18,611.35,0.27120961]
[1743510181538,1.08653562,612.17,611.35,0.27120961]
[1743510181940,0.28442178,612.19,611.34,0.31465722]
[1743510181941,1.08653562,612.16,611.34,0.31465722]
[1743510182138,1.08653562,612.16,611.35,0.27135069]
[1743510182741,1.08653562,612.15,611.35,0.27135069]
[1743510183043,0.078,612.14,611.35,0.27135069]
[1743510183238,1.08653562,612.13,611.35,0.27135069]
[1743510183639,1.08653562,612.12,611.35,0.27135069]
[1743510184239,1.88253562,612.11,611.35,0.27135069]
[1743510184444,2.16698995,612.11,611.35,0.27135069]
[1743510185040,1.08045433,612.11,611.35,0.27135069]
[1743510185939,1.08045433,612.11,611.34,0.31465722]
[1743510186346,1.08659185,612.1,611.34,0.31465722]
[1743510187048,1.08659185,612.09,611.34,0.31465722]
[1743510187549,1.37120554,612.09,611.34,0.31465722]
[1743510187747,1.08659185,612.08,611.34,0.31465722]
[1743510188142,1.08659185,612.07,611.34,0.31465722]
[1743510188547,0.28461369,612.09,611.34,0.31465722]
[1743510188548,2.43828817,612.06,611.34,0.31465722]
[1743510188747,1.35169632,612.05,611.34,0.31465722]
[1743510188948,2.43840141,612.04,611.34,0.31465722]
[1743510189148,1.08659185,612.04,611.34,0.31465722]
[1743510189344,1.35180956,612.03,611.34,0.31465722]
[1743510189549,1.08659185,612.03,611.34,0.31465722]
[1743510189849,1.08659185,612.02,611.34,0.31465722]
[1743510190049,1.62459185,612.02,611.34,0.31465722]
[1743510190249,0.538,612.02,611.35,0.32714484]
[1743510190449,0.28464861,612.01,611.35,0.32714484]
[1743510193146,0.538,612.02,611.35,0.32714484]
[1743510193347,0.538,612.02,611.36,0.27130264]
[1743510193654,0.28465443,612.0,611.36,0.59844213]
[1743510193946,0.28465443,612.0,611.37,0.27130264]
[1743510196155,0.538,612.02,611.37,0.27130264]
[1743510196457,0.28446363,611.99,611.37,0.27130264]
[1743510196659,0.28446363,611.99,611.37,0.59843678]
[1743510196950,0.28446363,611.99,611.38,0.27130264]
[1743510198952,0.915,611.98,611.38,0.27130264]
[1743510199555,0.28443689,611.97,611.38,0.27130264]
[1743510199757,0.46343689,611.97,611.38,0.27130264]
[1743510200262,0.46343689,611.97,611.39,0.27125005]
[1743510200461,0.46343689,611.97,611.38,0.27125005]
[1743510200667,0.46343689,611.97,611.39,0.27125005]
[1743510201063,0.46343689,611.97,611.38,0.27125005]
[1743510201268,0.46343689,611.97,611.39,0.27125005]
[1743510201462,0.46343689,611.97,611.38,0.27125005]
[1743510202270,0.46343689,611.97,611.39,0.27128735]
[1743510202470,0.46343689,611.97,611.38,0.27128735]
[1743510204065,0.46343689,611.97,611.37,0.32713414]
[1743510205274,0.179,611.97,611.37,0.32713414]
[1743510205468,0.28457877,611.96,611.37,0.32713414]
[1743510206881,0.28457877,611.96,611.38,0.27138808]
[1743510207070,0.28457877,611.96,611.37,0.32713414]
[1743510208273,1.09189686,611.95,611.37,0.32713414]
[1743510208473,1.09189686,611.94,611.37,0.32713414]
[1743510209075,0.28463697,611.95,611.37,0.32713414]
[1743510210276,1.09209622,611.94,611.37,0.32713414]
[1743510210872,1.09209622,611.93,611.37,0.32713414]
[1743510211475,1.09209622,611.92,611.37,0.32713414]
[1743510212273,1.09209622,611.91,611.37,0.32713414]
[1743510212472,1.37676113,611.91,611.37,0.32713414]
[1743510212979,1.09209622,611.9,611.37,0.32713414]
[1743510213573,1.09209622,611.89,611.37,0.32713414]
[1743510214178,1.09209622,611.88,611.37,0.32713414]
[1743510214580,1.45476345,611.88,611.37,0.32713414]
[1743510214879,0.36266723,611.88,611.37,0.32713414]
[1743510215681,0.643,611.87,611.37,0.32713414]
[1743510220988,0.643,611.87,611.38,0.27140926]
[1743510221187,0.643,611.87,611.39,0.32712344]
[1743510221385,0.643,611.87,611.4,0.27140926]
[1743510221587,0.643,611.87,611.41,0.32711273]
[1743510221783,0.643,611.87,611.42,0.27140926]
[1743510221993,0.643,611.87,611.43,0.32710203]
[1743510222188,0.643,611.87,611.44,0.27140926]
[1743510222383,0.643,611.87,611.45,0.32709134]
[1743510222589,0.643,611.87,611.46,0.27140926]
[1743510223184,0.643,611.87,611.45,0.32709134]
[1743510223386,0.643,611.87,611.46,0.27131956]
[1743510223786,0.643,611.87,611.47,0.32708064]
[1743510224487,0.643,611.87,611.48,0.27133712]
[1743510224688,0.643,611.87,611.49,0.32706994]
[1743510224894,0.643,611.87,611.5,0.27133712]
[1743510225094,0.643,611.87,611.51,0.32705924]
[1743510225289,0.643,611.87,611.52,0.27133712]
[1743510225485,0.643,611.87,611.53,0.32704855]
[1743510225691,0.643,611.87,611.54,0.27133712]
[1743510225892,0.643,611.87,611.54,0.59838032]
[1743510226192,0.643,611.87,611.55,0.27133712]
[1743510227494,0.643,611.87,611.54,0.3270432]
[1743510230695,0.643,611.87,611.55,0.27132364]
[1743510231096,0.643,611.87,611.54,0.3270432]
[1743510231391,0.643,611.87,611.55,0.27133985]
[1743510231591,0.643,611.87,611.54,0.3270432]
[1743510232595,0.28460205,611.86,611.54,0.3270432]
[1743510234698,0.643,611.87,611.54,0.3270432]
[1743510235099,0.28461136,611.85,611.54,0.3270432]
[1743510238096,0.643,611.87,611.54,0.3270432]
[1743510238494,0.28460321,611.84,611.54,0.3270432]
[1743510241305,0.886,611.92,611.54,0.3270432]
[1743510241598,0.28459507,611.84,611.54,0.3270432]
[1743510241903,0.886,611.92,611.54,0.3270432]
[1743510242102,0.28459507,611.84,611.54,0.3270432]
[1743510242298,0.886,611.92,611.54,0.3270432]
[1743510242803,0.28459507,611.84,611.54,0.3270432]
[1743510243003,0.886,611.92,611.54,0.3270432]
[1743510243200,0.2846067,611.84,611.54,0.3270432]
[1743510243700,0.886,611.92,611.54,0.3270432]
[1743510244006,0.28460554,611.84,611.54,0.3270432]
[1743510244204,0.886,611.92,611.54,0.3270432]
[1743510245706,0.28459041,611.93,611.54,0.3270432]
[1743510247307,1.417,611.99,611.54,0.3270432]
[1743510247508,0.28459507,611.92,611.54,0.3270432]
[1743510250407,0.28459507,611.92,611.55,0.27129647]
[1743510250707,0.28459507,611.92,611.54,0.3270432]
[1743510250906,0.28459507,611.92,611.55,0.27132863]
[1743510252904,2.223,611.99,611.55,0.27132863]
[1743510253703,2.223,611.99,611.54,0.3270432]
[1743510258605,2.223,611.99,611.55,0.2711622]
[1743510258911,2.145,611.99,611.55,0.2711622]
[1743510259504,0.28441364,611.98,611.55,0.2711622]
[1743510262009,0.28441364,611.98,611.56,0.27113385]
[1743510262207,1.607,611.99,611.55,0.27113385]
[1743510262513,0.28440667,611.97,611.56,0.27113385]
[1743510262709,0.28440667,611.97,611.55,0.27113385]
[1743510262912,0.28440667,611.97,611.56,0.27113385]
[1743510263112,0.28440667,611.97,611.55,0.27113385]
[1743510263314,0.28440667,611.97,611.56,0.27113385]
[1743510263610,0.28440667,611.97,611.57,0.27117775]
[1743510263816,0.28440667,611.97,611.55,0.27117775]
[1743510265122,1.607,611.99,611.55,0.27117775]
[1743510266621,0.28443224,611.98,611.55,0.27117775]
[1743510266822,0.28443224,611.98,611.54,0.3270432]
[1743510267020,0.28443224,611.98,611.55,0.27127319]
[1743510267629,0.28443224,611.98,611.54,0.3270432]
[1743510268329,1.607,611.99,611.54,0.3270432]
[1743510268630,0.28454736,611.97,611.54,0.3270432]
[1743510271232,1.607,611.99,611.54,0.3270432]
[1743510272642,0.28457412,611.98,611.54,0.3270432]
[1743510274432,1.607,611.99,611.54,0.3270432]
[1743510278539,2.44,611.99,611.54,0.3270432]
[1743510280040,2.44,611.99,611.55,0.271002]
[1743510280239,2.617,611.99,611.55,0.271002]
[1743510280539,1.632,611.99,611.54,0.3270432]
[1743510281039,1.632,611.99,611.55,0.27101531]
[1743510281234,1.632,611.99,611.54,0.3270432]
[1743510281441,1.632,611.99,611.55,0.27102269]
[1743510281941,1.632,611.99,611.54,0.3270432]
[1743510282340,1.632,611.99,611.55,0.27097664]
[1743510282535,1.632,611.99,611.54,0.3270432]
[1743510282938,1.632,611.99,611.55,0.27094747]
[1743510283943,1.01,611.99,611.55,0.27094747]
[1743510286547,1.01,611.99,611.54,0.3270432]
[1743510286944,1.01,611.99,611.55,0.27084865]
[1743510289047,1.01,611.99,611.54,0.3270432]
[1743510290049,1.01,611.99,611.55,0.27076601]
[1743510290450,1.01,611.99,611.54,0.3270432]
[1743510290846,1.01,611.99,611.55,0.27075131]
[1743510292151,1.01,611.99,611.54,0.3270432]
[1743510292551,0.28440899,611.98,611.54,0.3270432]
[1743510295253,1.01,611.99,611.55,0.27085228]
[1743510295648,0.28460088,611.97,611.55,0.27085228]